fUSD/lending_fUSD_20240210
["ID","MTS","AMOUNT","RATE_DAILY","PERIOD"]
[313680313,1707574291768,-657.0,0.000354,24]
[313680314,1707574291777,-187.78,0.00035561,2]
[313680315,1707574291786,-5229.43069697,0.000356,2]
[313680316,1707574291795,-5124.08108796,0.000356,2]
[313680317,1707574291804,-181.23,0.00035616,2]
[313680318,1707574291813,-1000.0,0.00035616,4]
[313680319,1707574291823,-458.73,0.00035616,2]
[313680320,1707574291832,-152.24,0.00035616,2]
[313680321,1707574291841,-154.50754697,0.00035661,2]
[313680322,1707574291852,-316.18,0.0003574,2]
[313680323,1707574291862,-1000.0,0.0003589,4]
[313680324,1707574291873,-157.0,0.000359,7]
[313680325,1707574291884,-657.0,0.000359,25]
[313680326,1707574291894,-500.0,0.00035959,2]
[313680327,1707574291903,-468.39933514,0.00035997,2]
[313680328,1707574291913,-50000.0,0.00036,6]
[313680329,1707574291922,-361.08831382,0.00036,7]
[313680330,1707574291931,-1000.0,0.00036,2]
[313680331,1707574291940,-299.2518509,0.00036,4]
[313680332,1707574291951,-300.0,0.00036,37]
[313680333,1707574291960,-9812.0,0.00036,2]
[313680334,1707574291970,-513187.52604325,0.00036,30]
[313680335,1707574291979,-3000.0,0.00036,2]
[313680336,1707574291988,-165183.40041882,0.00036,30]
[313680337,1707574291998,-300.0,0.00036,37]
[313680338,1707574292007,-352.05322222,0.000361,4]
[313680339,1707574292017,-1000.0,0.00036164,4]
[313680340,1707574292026,-741.0,0.00036164,4]
[313680341,1707574292036,-150.0,0.000362,7]
[313680342,1707574292045,-1000.0,0.000362,2]
[313680343,1707574292054,-150.0,0.00036213,7]
[313680344,1707574292063,-150.0,0.00036213,7]
[313680345,1707574292073,-164.0,0.00036247,2]
[313680346,1707574292082,-172.0,0.00036247,2]
[313680347,1707574292091,-657.0,0.000364,25]
[313680348,1707574292100,-194.36684383,0.000364,2]
[313680349,1707574292109,-1000.0,0.000365,6]
[313680350,1707574292118,-154.50754697,0.00036532,2]
[313680351,1707574292127,-165.14585808,0.0003668,30]
[313680352,1707574292136,-157.0,0.000367,7]
[313680353,1707574292146,-3493.59169159,0.00036791,2]
[313680354,1707574292155,-657.0,0.000369,26]
[313680355,1707574292165,-1000.0,0.00036906,10]
[313680356,1707574292175,-1000.0,0.00036906,10]
[313680357,1707574292184,-1000.0,0.00036906,10]
[313680358,1707574292194,-2000.0,0.00036984,5]
[313680359,1707574292203,-500.0,0.00036986,2]
[313680360,1707574292212,-1000.0,0.00036996,10]
[313680361,1707574292221,-1000.0,0.00036996,10]
[313680362,1707574292231,-1000.0,0.00036996,10]
[313680363,1707574292240,-50000.0,0.00037,7]
[313680364,1707574292249,-1000.0,0.00037,7]
[313680365,1707574292258,-1000.0,0.00037,7]
[313680366,1707574292268,-300.0,0.00037,38]
[313680367,1707574292277,-1000.0,0.00037,2]
[313680368,1707574292287,-458.614431,0.00037,2]
[313680369,1707574292297,-4205.94905768,0.00037,14]
[313680370,1707574292306,-1296.37834083,0.00037,7]
[313680371,1707574292315,-515.0,0.00037,14]
[313680372,1707574292325,-750.0,0.00037,2]
[313680373,1707574292334,-150.0,0.00037,3]
[313680374,1707574292343,-150.0,0.00037,3]
[313680375,1707574292353,-150.0,0.00037,7]
[313680376,1707574292362,-1550.0,0.00037,3]
[313680377,1707574292371,-168.0,0.00037,7]
[313680378,1707574292379,-2493.16,0.00037,3]
[313680379,1707574292517,-2493.16,0.00037,3]
[313680380,1707574292545,-2493.16,0.00037,3]
[313680381,1707574292556,-2493.16,0.00037,3]
[313680382,1707574292566,-2493.16,0.00037,3]
[313680383,1707574292577,-2493.16,0.00037,3]
[313680384,1707574292586,-2493.16,0.00037,3]
[313680385,1707574292596,-2493.16,0.00037,3]
[313680386,1707574292606,-2493.16,0.00037,3]
[313680387,1707574292617,-2493.16,0.00037,3]
[313680388,1707574292628,-2493.16,0.00037,3]
[313680389,1707574292637,-2493.16,0.00037,3]
[313680390,1707574292646,-2493.16,0.00037,3]
[313680391,1707574292655,-2493.16,0.00037,3]
[313680392,1707574292665,-2493.16,0.00037,3]
[313680393,1707574292675,-2493.16,0.00037,3]
[313680394,1707574292686,-2493.16,0.00037,3]
[313680395,1707574292696,-2493.16,0.00037,3]
[313680396,1707574292707,-2493.16,0.00037,3]
[313680397,1707574292717,-2493.16,0.00037,3]
[313680398,1707574292727,-50000.0,0.00037045,15]
[313680399,1707574292737,-50000.0,0.00037045,15]
[313680400,1707574292746,-14815.37985668,0.00037045,3]
[313680401,1707574292756,-18048.58177752,0.00037045,3]
[313680402,1707574292766,-7410.51833247,0.00037045,3]
[313680403,1707574292775,-48276.00161936,0.00037045,15]
[313680404,1707574292786,-11088.93227855,0.00037045,3]
[313680405,1707574292796,-1000.0,0.000372,4]
[313680406,1707574292806,-316.18,0.0003732,2]
[313680407,1707574292816,-657.0,0.000374,26]
[313680408,1707574292825,-154.50754697,0.00037404,2]
[313680409,1707574292835,-152.24,0.00037443,2]
[313680410,1707574292845,-840.0,0.0003746,2]
[313680411,1707574292855,-5000.0,0.000375,25]
[313680412,1707574292865,-4112.23777934,0.000375,2]
[313680413,1707574292877,-10000.0,0.000375,4]
[313680414,1707574292887,-10137.0,0.000375,4]
[313680415,1707574292897,-157.0,0.000375,7]
[313680416,1707574292906,-150.0,0.00037507,7]
[313680417,1707574292917,-150.0,0.00037507,7]
[313680418,1707574292927,-507.89581026,0.00037534,5]
[313680419,1707574292937,-45000.0,0.0003755,2]
[313680420,1707574292948,-150.0,0.00037625,2]
[313680421,1707574292958,-152.8430856,0.00037669,2]
[313680422,1707574292968,-151.0,0.00037695,2]
[313680423,1707574292978,-250.49088,0.00037695,2]
[313680424,1707574292987,-240050.5360444,0.000377,3]
[313680425,1707574292997,-216.0,0.00037706,2]
[313680426,1707574293007,-1232.0,0.00037706,2]
[313680427,1707574293017,-1253.0,0.00037706,2]
[313680428,1707574293027,-428.0,0.00037706,2]
[313680429,1707574293037,-499.248,0.00037706,2]
[313680430,1707574293047,-858.0,0.00037706,2]
[313680431,1707574293057,-150.0,0.00037706,2]
[313680432,1707574293067,-321.0,0.00037706,2]
[313680433,1707574293077,-19818.0,0.0003771,2]
[313680434,1707574293086,-850.432,0.0003771,2]
[313680435,1707574293097,-1036.0,0.0003771,2]
[313680436,1707574293106,-951.0,0.00037768,2]
[313680437,1707574293116,-1000.0,0.000378,6]
[313680438,1707574293126,-1000.0,0.000378,7]
[313680439,1707574293135,-9230.13204864,0.000378,5]
[313680440,1707574293145,-150.0,0.000378,7]
[313680441,1707574293154,-6523.00689959,0.000378,10]
[313680442,1707574293164,-724.7785444,0.000378,10]
[313680443,1707574293173,-43448.40145742,0.000378,15]
[313680444,1707574293183,-168.0,0.000378,7]
[313680445,1707574293193,-367.04835777,0.000378,10]
[313680446,1707574293203,-9980.03905069,0.000378,15]
[313680447,1707574293213,-185.2315379,0.000378,10]
[313680448,1707574293222,-12272.18675706,0.000378,2]
[313680449,1707574293232,-116341.08,0.00037808,2]
[313680450,1707574293241,-187.78,0.00037825,2]
[313680451,1707574293251,-468.39933514,0.00037897,2]
[313680452,1707574293261,-150.1,0.000379,2]
[313680453,1707574293270,-657.0,0.000379,27]
[313680454,1707574293280,-592412.33157386,0.000379,3]
[313680455,1707574293546,-31968.88579314,0.000379,3]
[313680456,1707574293556,-50000.0,0.00038,8]
[313680457,1707574293566,-14196.07247359,0.00038,5]
[313680458,1707574293576,-30000.0,0.00038,2]
[313680459,1707574293586,-300.0,0.00038,39]
[313680460,1707574293595,-3022.48169898,0.00038,7]
[313680461,1707574293605,-162.69,0.00038,5]
[313680462,1707574293614,-2000.0,0.00038,4]
[313680463,1707574293624,-500.0,0.00038014,2]
[313680464,1707574293633,-155.0,0.0003806,2]
[313680465,1707574293643,-908.89017,0.00038061,2]
[313680466,1707574293652,-155.0,0.00038062,4]
[313680467,1707574293662,-155.0,0.00038062,4]
[313680468,1707574293671,-1973.32966249,0.00038062,2]
[313680469,1707574293681,-1423.57755906,0.00038062,2]
[313680470,1707574293694,-4220.52007064,0.00038062,2]
[313680471,1707574293704,-500.0,0.00038082,2]
[313680472,1707574293714,-853.31,0.00038082,2]
[313680473,1707574293725,-183.31,0.00038082,2]
[313680474,1707574293734,-208.0,0.00038171,23]
[313680475,1707574293743,-404.6,0.00038219,2]
[313680476,1707574293753,-913.89,0.00038219,2]
[313680477,1707574293762,-150.0,0.00038252,2]
[313680478,1707574293771,-154.50754697,0.00038276,2]
[313680479,1707574293781,-10000.0,0.000383,29]
[313680480,1707574293790,-302.0,0.00038328,4]
[313680481,1707574293800,-500.0,0.00038356,2]
[313680482,1707574293810,-3652.62193063,0.00038356,30]
[313680483,1707574293819,-150.0,0.00038356,2]
[313680484,1707574293829,-300.0,0.00038356,7]
[313680485,1707574293839,-450.0,0.00038356,12]
[313680486,1707574293848,-600.0,0.00038356,17]
[313680487,1707574293858,-163.12627291,0.00038356,22]
[313680488,1707574293869,-490.67599065,0.00038356,7]
[313680489,1707574293881,-205.04497047,0.00038356,7]
[313680490,1707574293890,-8222.06,0.00038356,2]
[313680491,1707574293900,-150.0,0.00038356,2]
[313680492,1707574293909,-3493.59169159,0.00038369,2]
[313680493,1707574293919,-157.0,0.000384,7]
[313680494,1707574293928,-657.0,0.000384,27]
[313680495,1707574293938,-5000.0,0.000385,30]
[313680496,1707574293948,-150.0,0.000386,7]
[313680497,1707574293957,-168.0,0.000386,7]
[313680498,1707574293967,-500.0,0.0003863,2]
[313680499,1707574293977,-3195.7096678,0.00038684,11]
[313680500,1707574293987,-153.84,0.000387,3]
[313680501,1707574293996,-153.84,0.000387,3]
[313680502,1707574294005,-153.84,0.000387,3]
[313680503,1707574294016,-153.84,0.000387,3]
[313680504,1707574294026,-153.84,0.000387,3]
[313680505,1707574294035,-153.84,0.000387,3]
[313680506,1707574294045,-153.84,0.000387,3]
[313680507,1707574294055,-153.84,0.000387,3]
[313680508,1707574294064,-153.84,0.000387,3]
[313680509,1707574294074,-153.84,0.000387,3]
[313680510,1707574294084,-153.84,0.000387,3]
[313680511,1707574294093,-153.84,0.000387,3]
[313680512,1707574294103,-153.84,0.000387,3]
[313680513,1707574294112,-153.84,0.000387,3]
[313680514,1707574294122,-153.84,0.000387,3]
[313680515,1707574294132,-153.84,0.000387,3]
[313680516,1707574294142,-22517.84162564,0.00038703,2]
[313680517,1707574294152,-10000.0,0.000388,22]
[313680518,1707574294161,-2954.88014479,0.000388,4]
[313680519,1707574294173,-13304.56573322,0.000388,4]
[313680520,1707574294196,-551.37519397,0.00027197,2]
[313680521,1707574294209,-36.43480603,0.00027197,2]
[313680522,1707574294219,-5201.02476561,0.000388,4]
[313680523,1707574294229,-23169.08798836,0.000388,10]
[313680524,1707574294241,-864.14,0.000388,10]
[313680525,1707574294253,-647.364,0.000388,10]
[313680526,1707574294264,-1028.63297455,0.000388,10]
[313680527,1707574294800,-247.7810344,0.00022539,2]
[313680528,1707574294809,-1213.06811367,0.0002261,2]
[313680529,1707574294825,-501.74865328,0.0002261,2]
[313680530,1707574294835,-805.0244182,0.00022755,2]
[313680531,1707574294845,-913.89,0.00022877,2]
[313680532,1707574294854,-258.77548279,0.00025553,2]
[313680533,1707574294868,-2493.21519858,0.00025553,2]
[313680534,1707574294885,-338.32261008,0.00025553,2]
[313680535,1707574294897,-243.08670855,0.00025553,2]
[313680536,1707574294907,-3333.4,0.00025827,2]
[313680537,1707574295072,-3333.4,0.00026101,2]
[313680538,1707574295083,-3333.4,0.00026375,2]
[313680539,1707574295092,-293.26169145,0.00026649,2]
[313680540,1707574295106,-941.4846283,0.00026649,2]
[313680541,1707574295118,-2098.65368025,0.00026649,2]
[313680542,1707574295128,-649.5526434,0.00026923,2]
[313680543,1707574295140,-889.30090591,0.00026923,2]
[313680544,1707574295154,-1213.0333137,0.00026923,2]
[313680545,1707574295169,-581.51313699,0.00026923,2]
[313680546,1707574295179,-500.0,0.00026924,2]
[313680547,1707574295188,-3333.4,0.00027197,2]
[313680548,1707574295198,-500.0,0.00027198,2]
[313680549,1707574295208,-531.8,0.00027397,10]
[313680550,1707574295218,-353.85864247,0.00027471,2]
[313680551,1707574295230,-233.95135753,0.00027471,2]
[313680552,1707574295240,-1866.04864247,0.00027471,2]
[313680553,1707574295252,-1467.35135753,0.00027471,2]
[313680554,1707574295262,-500.0,0.00027472,2]
[313680555,1707574295272,-587.81,0.00027745,2]
[313680556,1707574295282,-3333.4,0.00027745,2]
[313680557,1707574295292,-500.0,0.00027746,2]
[313680558,1707574295301,-587.81,0.00028019,2]
[313680559,1707574295311,-500.0,0.00028019,2]
[313680560,1707574295320,-3333.4,0.00028019,2]
[313680561,1707574295330,-9.06961337,0.00028293,2]
[313680562,1707574295342,-578.74038663,0.00028293,2]
[313680563,1707574295351,-55.46004523,0.00028293,2]
[313680564,1707574295363,-440.41377552,0.00028293,2]
[313680565,1707574295375,-4.12617925,0.00028293,2]
[313680566,1707574295385,-260.83834012,0.00028293,2]
[313680567,1707574295396,-966.52125872,0.00028293,2]
[313680568,1707574295408,-1260.0,0.00028293,2]
[313680569,1707574295425,-496.59528618,0.00028293,2]
[313680570,1707574407584,1000.0,0.00022471,2]
[313680571,1707574413716,1737.19,0.00022471,2]
[313680572,1707574455456,1417.1779,0.0002244,2]
[313680573,1707574461049,2936.26702516,0.00022471,2]
[313680574,1707574465236,950.7,0.00022277,2]
[313680575,1707574480842,150.0,0.00022277,2]
[313680576,1707574481056,1957.51135011,0.00022471,2]
[313680577,1707574499051,1631.25945842,0.00022471,2]
[313680578,1707574509322,164.43,0.00022218,2]
[313680579,1707574517058,849.88617784,0.00022471,2]
[313680580,1707574531061,849.88617784,0.00022471,2]
[313680581,1707574551079,849.88617784,0.00022471,2]
[313680582,1707574562922,182.38,0.0002214,2]
[313680583,1707574567069,849.88617784,0.00022471,2]
[313680584,1707574575394,245.97,0.00020223,2]
[313680585,1707574575643,245.97,0.00022487,2]
[313680586,1707574583086,849.88617784,0.00022471,2]
[313680587,1707574601071,849.88617784,0.00022471,2]
[313680588,1707574602303,182.19,0.00022107,10]
[313680589,1707574616461,775.13806544,0.000225,2]
[313680590,1707574617073,849.88617784,0.00022471,2]
[313680591,1707574633099,849.88617784,0.00022471,2]
[313680592,1707574635209,571.72,0.00022081,2]
[313680593,1707574643055,349.95,0.00022107,2]
[313680594,1707574649095,849.88617784,0.00022471,2]
[313680595,1707574665227,849.88617784,0.00022471,2]
[313680596,1707574680270,600.0,0.00022107,2]
[313680597,1707574681078,849.88617784,0.00022471,2]
[313680598,1707574701090,438.80879428,0.00022471,2]
[313680599,1707574712626,23900.0,0.00022107,2]
[313680600,1707574746571,2705.0,0.0002212,2]
[313680601,1707574760804,1852.42,0.0002204,2]
[313680602,1707574832266,1366.64,0.00022174,2]
[313680603,1707574850220,212.79,0.00022017,2]
[313680604,1707574850525,250.0,0.00022017,2]
[313680605,1707574851460,2000.0,0.00022017,2]
[313680606,1707574866521,775.13806544,0.000225,2]
[313680607,1707574885422,200.0,0.00022061,2]
[313680608,1707574899368,202.87,0.00022278,2]
[313680609,1707574899582,202.87,0.0002234,2]
[313680610,1707574899813,202.87,0.00022401,2]
[313680611,1707574900023,202.87,0.00022462,2]
[313680612,1707574916689,2500.0,0.0002244,2]
[313680613,1707574961010,65901.0515,0.0002244,2]
[313680614,1707574968662,1058.22,0.0002212,2]
[313680615,1707575089114,1000.0,0.0002244,2]
[313680616,1707575107468,37374.6784,0.00022439,2]
[313680617,1707575116112,179.13,0.00021916,10]
[313680618,1707575123785,160.92130107,0.00022439,2]
[313680619,1707575133807,210.0,0.00022073,2]
[313680620,1707575168368,174.97,0.00021842,2]
[313680623,1707575231981,20977.59,0.00021829,2]
[313680624,1707575234277,232.36,0.00019911,2]
[313680625,1707575234477,232.36,0.00022175,2]
[313680632,1707575351371,476.43,0.00021829,2]
[313680641,1707575366488,162.29,0.00021992,2]
[313680642,1707575366745,162.29,0.00022053,2]
[313680643,1707575366977,162.29,0.00022113,2]
[313680644,1707575367176,162.29,0.00022173,2]
[313680645,1707575367388,162.29,0.00022234,2]
[313680646,1707575367582,162.29,0.00022294,2]
[313680647,1707575367816,162.29,0.00022354,2]
[313680648,1707575368017,162.29,0.00022415,2]
[313680649,1707575368644,162.29,0.00022475,2]
[313680676,1707575432296,-775.13806544,0.00022533,2]
[313680678,1707575432305,-514.35964052,0.00022533,2]
[313680680,1707575432315,-160.92130105,0.00022534,2]
[313680682,1707575432324,-162.29,0.00022535,2]
[313680683,1707575432334,-155.0,0.00022538,2]
[313680684,1707575432343,-500.0,0.00022539,2]
[313680685,1707575432352,-500.0,0.00022539,2]
[313680686,1707575432361,-500.0,0.00022539,2]
[313680687,1707575432370,-1647.79,0.00022539,2]
[313680688,1707575432379,-500.0,0.00022539,2]
[313680689,1707575432388,-500.0,0.00022539,2]
[313680690,1707575432397,-500.0,0.00022539,2]
[313680691,1707575432406,-500.0,0.00022539,2]
[313680692,1707575432415,-500.0,0.00022539,2]
[313680693,1707575432425,-500.0,0.00022539,2]
[313680694,1707575432434,-500.0,0.00022539,2]
[313680695,1707575432443,-265.17791754,0.00022539,2]
[313680696,1707575432452,-500.0,0.00022539,2]
[313680697,1707575432461,-500.0,0.00022539,2]
[313680698,1707575432470,-500.0,0.00022539,2]
[313680699,1707575432479,-500.0,0.00022539,2]
[313680700,1707575432488,-500.0,0.00022539,2]
[313680701,1707575432498,-500.0,0.00022539,2]
[313680702,1707575432506,-500.0,0.00022539,2]
[313680703,1707575432515,-500.0,0.00022539,2]
[313680704,1707575432525,-500.0,0.00022539,2]
[313680705,1707575432534,-500.0,0.00022539,2]
[313680706,1707575432543,-500.0,0.00022539,2]
[313680707,1707575432552,-500.0,0.00022539,2]
[313680708,1707575432561,-500.0,0.00022539,2]
[313680709,1707575432570,-500.0,0.00022539,2]
[313680710,1707575432578,-500.0,0.00022539,2]
[313680711,1707575432587,-500.0,0.00022539,2]
[313680712,1707575432596,-296.37206631,0.00022539,2]
[313680713,1707575432605,-500.0,0.00022539,2]
[313680714,1707575432614,-500.0,0.00022539,2]
[313680715,1707575432623,-500.0,0.00022539,2]
[313680716,1707575432632,-500.0,0.00022539,2]
[313680717,1707575432641,-500.0,0.00022539,2]
[313680718,1707575432650,-500.0,0.00022539,2]
[313680719,1707575432658,-1021.86472363,0.00022539,7]
[313680720,1707575432667,-500.0,0.00022539,2]
[313680721,1707575432676,-500.0,0.00022539,2]
[313680723,1707575432686,-500.0,0.00022539,2]
[313680725,1707575432694,-500.0,0.00022539,2]
[313680727,1707575432703,-500.0,0.00022539,2]
[313680729,1707575432712,-500.0,0.00022539,2]
[313680731,1707575432721,-500.0,0.00022539,2]
[313680733,1707575432730,-500.0,0.00022539,2]
[313680734,1707575432739,-500.0,0.00022539,2]
[313680736,1707575432748,-500.0,0.00022539,2]
[313680738,1707575432758,-500.0,0.00022539,2]
[313680740,1707575432767,-500.0,0.00022539,2]
[313680742,1707575432776,-500.0,0.00022539,2]
[313680743,1707575432785,-500.0,0.00022539,2]
[313680744,1707575432794,-429.98628551,0.00022539,2]
[313680745,1707575432825,-70.01371449,0.00022539,2]
[313680746,1707575432834,-500.0,0.00022539,2]
[313680747,1707575432843,-500.0,0.00022539,2]
[313680748,1707575432852,-500.0,0.00022539,2]
[313680749,1707575432861,-500.0,0.00022539,2]
[313680750,1707575432870,-500.0,0.00022539,2]
[313680751,1707575432879,-500.0,0.00022539,2]
[313680752,1707575432888,-500.0,0.00022539,2]
[313680753,1707575432898,-500.0,0.00022539,2]
[313680754,1707575432907,-500.0,0.00022539,2]
[313680755,1707575432916,-500.0,0.00022539,2]
[313680756,1707575432925,-194.9164528,0.00022539,2]
[313680757,1707575432937,-305.0835472,0.00022539,2]
[313680758,1707575432946,-500.0,0.00022539,2]
[313680759,1707575432955,-500.0,0.00022539,2]
[313680760,1707575432964,-500.0,0.00022539,2]
[313680761,1707575432973,-500.0,0.00022539,2]
[313680762,1707575432982,-500.0,0.00022539,2]
[313680763,1707575432991,-500.0,0.00022539,2]
[313680764,1707575433000,-500.0,0.00022539,2]
[313680765,1707575433009,-233.48078322,0.00022539,2]
[313680766,1707575433044,-266.51921678,0.00022539,2]
[313680767,1707575433053,-500.0,0.00022539,2]
[313680768,1707575433062,-500.0,0.00022539,2]
[313680769,1707575433070,-500.0,0.00022539,2]
[313680770,1707575433079,-500.0,0.00022539,2]
[313680771,1707575433088,-500.0,0.00022539,2]
[313680772,1707575433097,-500.0,0.00022539,2]
[313680773,1707575433106,-500.0,0.00022539,2]
[313680774,1707575433115,-500.0,0.00022539,2]
[313680775,1707575433125,-500.0,0.00022539,2]
[313680776,1707575433134,-500.0,0.00022539,2]
[313680777,1707575433143,-500.0,0.00022539,2]
[313680778,1707575433152,-500.0,0.00022539,2]
[313680779,1707575433161,-500.0,0.00022539,2]
[313680780,1707575433171,-500.0,0.00022539,2]
[313680781,1707575433180,-500.0,0.00022539,2]
[313680782,1707575433188,-500.0,0.00022539,2]
[313680783,1707575433197,-500.0,0.00022539,2]
[313680784,1707575433206,-500.0,0.00022539,2]
[313680785,1707575433217,-500.0,0.00022539,2]
[313680786,1707575433227,-532.21021883,0.00022539,2]
[313680787,1707575433236,-500.0,0.00022539,2]
[313680788,1707575433245,-500.0,0.00022539,2]
[313680789,1707575433255,-500.0,0.00022539,2]
[313680790,1707575433264,-500.0,0.00022539,2]
[313680791,1707575433273,-500.0,0.00022539,2]
[313680792,1707575433282,-500.0,0.00022539,2]
[313680793,1707575433293,-500.0,0.00022539,2]
[313680794,1707575433302,-500.0,0.00022539,2]
[313680795,1707575433311,-536.46,0.00022539,2]
[313680796,1707575433321,-500.0,0.00022539,2]
[313680797,1707575433330,-526.67747501,0.00022539,2]
[313680798,1707575433339,-500.0,0.00022539,2]
[313680799,1707575433348,-500.0,0.00022539,2]
[313680800,1707575433357,-500.0,0.00022539,2]
[313680801,1707575433366,-500.0,0.00022539,2]
[313680802,1707575433375,-500.0,0.00022539,2]
[313680803,1707575433385,-500.0,0.00022539,2]
[313680804,1707575433394,-500.0,0.00022539,2]
[313680805,1707575433403,-500.0,0.00022539,2]
[313680806,1707575433413,-500.0,0.00022539,2]
[313680807,1707575433422,-500.0,0.00022539,2]
[313680808,1707575433432,-500.0,0.00022539,2]
[313680809,1707575433441,-500.0,0.00022539,2]
[313680810,1707575433450,-500.0,0.00022539,2]
[313680811,1707575433459,-500.0,0.00022539,2]
[313680812,1707575433469,-500.0,0.00022539,2]
[313680813,1707575433477,-324.63308938,0.00022539,2]
[313680814,1707575433511,-175.36691062,0.00022539,2]
[313680815,1707575433519,-192.15743159,0.0002254,2]
[313680816,1707575433550,-310.98279682,0.0002254,2]
[313680817,1707575433559,-504.05894076,0.0002254,2]
[313680818,1707575433568,-500.0,0.0002254,2]
[313680819,1707575433578,-500.0,0.0002254,2]
[313680820,1707575433587,-500.0,0.0002254,2]
[313680821,1707575433596,-500.0,0.0002254,2]
[313680822,1707575433605,-500.0,0.0002254,2]
[313680823,1707575433615,-500.0,0.0002254,2]
[313680824,1707575433624,-507.83497168,0.0002254,2]
[313680825,1707575433633,-268.43036429,0.0002254,2]
[313680826,1707575433642,-500.0,0.0002254,2]
[313680827,1707575433651,-500.0,0.0002254,2]
[313680828,1707575433661,-500.0,0.0002254,2]
[313680829,1707575433671,-500.0,0.0002254,2]
[313680830,1707575433679,-500.0,0.0002254,2]
[313680831,1707575433688,-559.89383434,0.0002254,2]
[313680832,1707575433698,-500.0,0.0002254,2]
[313680833,1707575433707,-500.0,0.0002254,2]
[313680834,1707575433716,-500.0,0.0002254,2]
[313680835,1707575433726,-500.0,0.0002254,2]
[313680836,1707575433735,-500.0,0.0002254,2]
[313680837,1707575433744,-500.0,0.0002254,2]
[313680838,1707575433753,-500.0,0.0002254,2]
[313680839,1707575433762,-500.0,0.0002254,2]
[313680840,1707575433771,-519.0954282,0.0002254,2]
[313680841,1707575433780,-500.0,0.0002254,2]
[313680842,1707575433789,-285.43161133,0.0002254,2]
[313680843,1707575433799,-500.0,0.0002254,2]
[313680844,1707575433808,-500.0,0.0002254,2]
[313680845,1707575433818,-504.36967194,0.0002254,2]
[313680846,1707575433827,-500.0,0.0002254,2]
[313680847,1707575433836,-500.0,0.0002254,2]
[313680848,1707575433846,-500.0,0.0002254,2]
[313680849,1707575433856,-500.0,0.0002254,2]
[313680850,1707575433865,-500.0,0.0002254,2]
[313680851,1707575433874,-500.0,0.0002254,2]
[313680852,1707575433883,-591.77763928,0.0002254,2]
[313680853,1707575433892,-1000.0,0.0002254,2]
[313680854,1707575433901,-500.0,0.0002254,2]
[313680855,1707575433910,-500.0,0.0002254,2]
[313680856,1707575433919,-500.0,0.0002254,2]
[313680857,1707575433928,-500.0,0.0002254,2]
[313680858,1707575433937,-500.0,0.0002254,2]
[313680859,1707575433946,-500.0,0.0002254,2]
[313680860,1707575433955,-500.0,0.0002254,2]
[313680861,1707575433965,-500.0,0.0002254,2]
[313680862,1707575433974,-500.0,0.0002254,2]
[313680863,1707575433983,-500.0,0.0002254,2]
[313680864,1707575433992,-500.0,0.0002254,2]
[313680865,1707575434001,-500.0,0.0002254,2]
[313680866,1707575434010,-472.48555952,0.0002254,2]
[313680867,1707575434020,-500.0,0.0002254,2]